bitfinex-derivatives/quotes_ETHF0:USTF0_20241207
["timestamp","ask_amount","ask_price","bid_price","bid_amount"]
[1733553557740,1.1657,3993.5,3993.3,0.90359022]
[1733553557939,1.1657,3993.5,3993.3,1.07861022]
[1733553558143,1.1657,3993.5,3993.2,0.4005]
[1733553558334,0.17502,3993.4,3993.2,1.30409022]
[1733553558647,1.1657,3993.5,3993.2,1.47912022]
[1733553558849,1.34071,3993.5,3993.2,1.30409022]
[1733553559037,0.17502,3993.4,3993.2,1.30409022]
[1733553560744,1.1657,3993.5,3993.2,1.30409022]
[1733553561550,1.34071,3993.5,3993.2,1.30409022]
[1733553561746,1.1657,3993.5,3993.2,1.30409022]
[1733553562041,0.17502,3993.4,3993.2,1.30409022]
[1733553564348,0.17502,3993.3,3993.2,1.30409022]
[1733553564649,1.1657,3993.5,3993.2,1.30409022]
[1733553564847,1.1657,3993.5,3993.3,0.17502]
[1733553565243,0.90359022,3994.4,3993.4,0.672]
[1733553565244,3.2078,3994.4,3993.4,0.672]
[1733553565449,0.7977,3994.2,3994.1,0.90359022]
[1733553565643,0.97268,3994.2,3994.1,0.90359022]
[1733553568553,0.7977,3994.2,3993.5,3.2078]
[1733553568852,0.17501,3993.6,3993.5,3.2078]
[1733553569044,0.17501,3993.6,3993.5,3.8798]
[1733553569845,0.17501,3993.6,3993.5,3.2078]
[1733553570049,0.17501,3993.6,3993.5,3.8798]
[1733553570248,0.17501,3993.6,3993.5,3.2078]
[1733553570449,0.90359022,3993.9,3993.2,0.672]
[1733553570754,0.17502,3993.3,3993.2,0.672]
[1733553572149,0.17502,3993.3,3993.2,4.58007547]
[1733553572345,0.17502,3993.3,3993.2,0.672]
[1733553572850,0.17503,3993.2,3993.1,4.99027547]
[1733553573046,0.17503,3993.2,3993.1,4.58007547]
[1733553573244,0.17504,3993.1,3993.0,3.2078]
[1733553576348,0.17504,3993.1,3992.8,0.90359022]
[1733553576349,0.17505,3992.9,3992.8,0.90359022]
[1733553579658,0.17506,3992.7,3992.6,3.90807547]
[1733553579852,0.7967,3992.8,3992.5,5.21636569]
[1733553580158,0.17506,3992.6,3992.5,5.21636569]
[1733553582052,0.17506,3992.6,3992.5,1.30829022]
[1733553583566,0.17506,3992.6,3992.5,5.23283156]
[1733553584057,0.17506,3992.6,3992.5,3.92454134]
[1733553584359,0.17507,3992.5,3992.4,7.13234134]
[1733553584561,1.36447,3992.5,3992.4,7.13234134]
[1733553585060,1.36447,3992.5,3992.4,3.2078]
[1733553585570,1.36447,3992.5,3992.4,7.13234134]
[1733553587457,1.36447,3992.5,3992.4,3.2078]
[1733553592568,0.17507,3992.5,3992.4,4.11139022]
[1733553594456,0.17507,3992.5,3992.4,9.06991321]
[1733553595063,0.17507,3992.5,3992.4,3.2078]
[1733553595263,0.17507,3992.5,3992.4,9.97350343]
[1733553595464,0.17507,3992.5,3992.4,9.9998875]
[1733553595757,0.17507,3992.5,3992.4,9.09639832]
[1733553595960,0.17507,3992.5,3992.4,3.2078]
[1733553596665,0.17507,3992.5,3992.4,9.09697234]
[1733553601066,0.7718,3992.8,3992.4,10.00056256]
[1733553601265,0.17506,3992.7,3992.6,3.92573581]
[1733553601666,0.7718,3992.8,3992.5,6.26477234]
[1733553601969,0.17506,3992.6,3992.5,6.26477234]
[1733553602164,3.5924,3993.0,3992.5,6.26477234]
[1733553602373,0.17505,3992.9,3992.8,3.92568254]
[1733553602673,0.17506,3992.8,3992.7,5.88917234]
[1733553604474,0.17506,3992.8,3992.5,8.36682095]
[1733553604870,0.17506,3992.8,3992.5,8.19175095]
[1733553605268,0.17506,3992.8,3992.7,0.90359022]
[1733553606578,0.3846,3993.0,3992.5,8.19175095]
[1733553606579,0.17506,3992.6,3992.5,8.19175095]
[1733553606773,0.17506,3992.6,3992.5,5.88806007]
[1733553606971,0.17507,3992.5,3992.4,3.2078]
[1733553607280,0.17507,3992.5,3992.4,9.09586007]
[1733553607778,0.17507,3992.5,3992.4,3.2078]
[1733553608375,0.17507,3992.5,3992.4,9.09586007]
[1733553609779,0.17507,3992.5,3992.4,3.2078]
[1733553610171,0.17507,3992.5,3992.4,7.13390858]
[1733553612175,0.17507,3992.5,3992.4,3.2078]
[1733553613480,0.17507,3992.5,3992.4,7.13390858]
[1733553615276,0.17507,3992.5,3992.4,3.2078]
[1733553617582,0.17507,3992.5,3992.4,9.09586007]
[1733553618176,0.17507,3992.5,3992.4,3.2078]
[1733553620779,1.67999022,3992.7,3992.2,7.81615095]
[1733553620977,0.17507,3992.3,3992.2,7.81615095]
[1733553621176,0.17507,3992.3,3992.2,16.2466126]
[1733553622486,0.17507,3992.3,3992.2,7.81615095]
[1733553622687,0.17507,3992.3,3992.2,16.24702149]
[1733553622890,0.17507,3992.3,3992.2,16.24708125]
[1733553623081,0.17507,3992.3,3992.2,7.81615095]
[1733553623891,0.17507,3992.3,3992.2,16.24690663]
[1733553624186,0.17507,3992.3,3992.2,16.24688867]
[1733553624785,0.17508,3992.2,3992.1,11.02395095]
[1733553629990,0.17508,3992.2,3992.1,3.2078]
[1733553632889,0.17508,3992.1,3992.0,8.48015095]
[1733553634898,0.17508,3992.1,3992.0,16.91238379]
[1733553635192,0.17508,3992.1,3992.0,8.48015095]
[1733553636392,0.17508,3992.1,3992.0,16.91168363]
[1733553636593,0.17508,3992.1,3992.0,8.48015095]
[1733553636791,0.17508,3992.1,3992.0,9.09535999]
[1733553638691,0.17508,3992.1,3992.0,9.09377489]
[1733553640698,0.17508,3992.1,3992.0,16.29356395]
[1733553642300,0.17508,3992.1,3992.0,8.42977489]
[1733553643600,0.3836,3992.4,3992.0,8.4298549]
[1733553643894,0.55867,3992.4,3992.3,5.89765931]
[1733553644796,0.55867,3992.4,3992.1,7.86354575]
[1733553644797,0.17508,3992.2,3992.1,7.86354575]
[1733553646002,0.17508,3992.2,3992.1,16.29315759]
[1733553646201,0.17508,3992.2,3992.1,7.86354575]
[1733553646401,0.17508,3992.2,3992.1,16.29335342]
[1733553646907,0.17508,3992.2,3992.1,7.86354575]
[1733553647714,1.28719022,3992.4,3992.0,7.86354575]
[1733553647910,0.97238,3992.1,3992.0,7.86354575]
[1733553648801,0.97238,3992.1,3992.0,16.29377469]
[1733553649108,0.97238,3992.1,3992.0,7.86354575]
[1733553649406,0.97238,3992.1,3992.0,16.29376775]
[1733553650403,0.97238,3992.1,3992.0,8.430222]
[1733553651004,0.97238,3992.1,3992.0,16.29629857]
[1733553651503,0.97238,3992.1,3992.0,8.430222]
[1733553653606,0.97238,3992.1,3992.0,8.43790492]
[1733553654803,0.97238,3992.1,3992.0,18.20809361]
[1733553656407,0.97238,3992.1,3992.0,8.43790492]
[1733553658802,0.97238,3992.1,3992.0,8.44013962]
[1733553659201,0.17509,3992.0,3991.9,0.66]
[1733553659401,0.17509,3992.0,3991.9,9.09984438]
[1733553662402,0.17509,3992.0,3991.9,12.30739201]
[1733553667012,0.17509,3992.0,3991.9,22.15025614]
[1733553667213,0.17509,3992.0,3991.9,22.15219261]
[1733553668511,0.17509,3992.0,3991.9,22.15231593]
[1733553669916,0.17509,3992.0,3991.9,12.30932848]
[1733553675609,0.17509,3992.0,3991.9,11.64932848]
[1733553675812,2.93720035,3992.0,3991.8,7.87869241]
[1733553676010,4.34607304,3991.9,3991.7,6.04114836]
[1733553676212,4.54574996,3991.8,3991.7,5.91095086]
[1733553676417,4.54574996,3991.8,3991.7,4.04345086]
[1733553676418,4.72083996,3991.8,3991.7,4.04345086]
[1733553676717,0.1751,3991.7,3991.6,3.93845373]
[1733553677017,0.1751,3991.7,3990.7,0.66]
[1733553677018,0.1751,3991.6,3991.5,3.93845373]
[1733553677513,1.07869022,3991.6,3991.5,3.93845373]
[1733553677711,0.17511,3991.5,3991.4,3.93845373]
[1733553677909,0.17511,3991.4,3991.3,3.93845373]
[1733553678109,1.07870022,3991.4,3991.3,3.93845373]
[1733553678319,0.17513,3991.0,3990.9,3.2078]
[1733553679718,0.55683,3991.0,3990.9,3.2078]
[1733553681210,0.3817,3991.0,3990.6,0.3877]
[1733553681414,0.17514,3990.7,3990.6,0.3877]
[1733553683625,0.17514,3990.7,3990.5,5.71089683]
[1733553683626,0.17515,3990.5,3990.4,3.93009652]
[1733553683927,0.17516,3990.4,3990.3,3.93009652]
[1733553684222,1.29249022,3990.4,3990.2,3.93009652]
[1733553684426,0.7926,3990.3,3990.1,3.93009652]
[1733553684725,0.17516,3990.2,3990.1,3.93009652]
[1733553685024,0.17516,3990.2,3989.8,1.0538]
[1733553685221,0.7926,3990.3,3989.8,1.0538]
[1733553685222,0.17518,3990.0,3989.8,1.0538]
[1733553685413,0.17518,3989.9,3989.8,1.0538]
[1733553685719,0.17518,3989.9,3989.8,0.3938]
[1733553687716,0.17518,3989.9,3989.8,4.31784483]
[1733553687912,0.17518,3989.9,3989.8,0.3938]
[1733553688322,0.17518,3989.9,3989.8,4.3176734]
[1733553689827,0.17518,3989.9,3989.8,0.3938]
[1733553700530,0.87554,3991.6,3989.8,0.3938]
[1733553700734,0.17516,3990.3,3990.2,3.2078]
[1733553703836,0.90359022,3990.3,3989.9,0.3975]
[1733553704040,0.17517,3990.0,3989.9,0.3975]
[1733553704233,1.07876022,3990.0,3989.9,0.3975]
[1733553704437,0.17517,3990.0,3989.9,0.3975]
[1733553704737,1.07876022,3990.0,3989.9,0.3975]
[1733553707835,0.90359022,3990.0,3989.9,0.3975]
[1733553708543,1.07876022,3990.0,3989.9,0.3975]
[1733553709132,0.387,3990.5,3989.9,0.3975]
[1733553709343,0.90359022,3990.6,3990.2,3.2078]
[1733553709540,0.17516,3990.3,3990.2,3.2078]
[1733553715346,1.07875022,3990.3,3990.2,3.2078]
[1733553715545,0.90359022,3990.3,3990.1,0.66]
[1733553715748,0.90359022,3990.3,3990.0,3.9238734]
[1733553715946,0.17516,3990.2,3990.1,0.66]
[1733553716646,0.17516,3990.2,3989.9,4.3213734]
[1733553716647,0.17517,3990.1,3990.0,3.9238734]
[1733553716950,0.17517,3990.1,3990.0,0.66]
[1733553717449,0.17517,3990.1,3990.0,4.5838734]
[1733553717752,0.17517,3990.2,3990.0,0.66]
[1733553718049,0.17516,3990.2,3990.1,3.92646854]
[1733553718645,0.17516,3990.2,3990.0,0.66]
[1733553718943,0.4081,3990.4,3990.0,0.66]
[1733553719148,0.17516,3990.1,3990.0,0.66]
[1733553720546,0.4081,3990.4,3990.0,0.66]
[1733553720851,0.17517,3990.1,3990.0,0.66]
[1733553722348,0.17517,3990.1,3990.0,8.52833968]
[1733553723254,0.17517,3990.1,3990.0,0.66]
[1733553725159,1.07876022,3990.2,3990.0,8.52833968]
[1733553725354,0.90359022,3990.2,3990.0,8.52833968]
[1733553725551,0.17517,3990.1,3990.0,8.52833968]
[1733553725747,0.17516,3990.3,3990.0,8.70350968]
[1733553726053,0.17517,3990.1,3990.0,8.52833968]
[1733553727161,0.17517,3990.1,3990.0,0.66]
[1733553727652,0.57167,3990.1,3990.0,7.87857074]
[1733553730157,0.57167,3990.1,3989.9,9.84763137]
[1733553730158,0.17517,3990.0,3989.9,9.84763137]
[1733553732755,0.17518,3989.9,3989.8,14.10923137]
[1733553733154,0.17518,3989.9,3989.8,4.2616]
[1733553733758,0.17518,3989.9,3989.8,14.10923137]
[1733553734162,1.30009022,3990.1,3989.8,14.10923137]
[1733553734668,0.17518,3989.9,3989.8,14.10923137]
[1733553735166,1.30009022,3990.1,3989.8,14.10923137]
[1733553735661,0.17518,3989.9,3989.8,14.10923137]
[1733553736865,0.17518,3989.9,3989.8,10.90143137]
[1733553737167,0.17518,3989.9,3989.8,1.0538]
[1733553738666,0.17518,3989.9,3989.8,8.93463594]
[1733553745177,0.17518,3989.9,3989.8,1.0538]
[1733553745588,0.17518,3989.9,3989.8,8.53906154]
[1733553746680,0.17518,3989.9,3989.8,7.87906154]
[1733553748280,0.17517,3989.8,3989.7,3.2078]
[1733553749878,1.07876022,3989.8,3989.7,3.2078]
[1733553750083,0.90359022,3989.8,3989.7,5.90961084]
[1733553750289,0.90359022,3989.8,3989.7,3.93975691]
[1733553750290,4.03117881,3989.8,3989.7,3.93975691]
[1733553750586,4.03117881,3989.8,3989.6,3.93975691]
[1733553750587,0.17518,3989.7,3989.6,3.93975691]
[1733553750779,0.17518,3989.7,3989.3,3.2078]
[1733553750780,0.17518,3989.6,3989.5,3.93975691]
[1733553750975,1.47417022,3989.6,3989.5,3.93975691]
[1733553751383,1.47417022,3989.6,3989.3,9.11741084]
[1733553751384,0.17519,3989.5,3989.4,3.93975691]
[1733553751589,0.4047,3989.5,3989.3,9.11741084]
[1733553751886,0.17519,3989.4,3989.3,9.11741084]
[1733553752085,0.1752,3989.3,3989.2,5.90961084]
[1733553752280,0.90359022,3989.3,3989.2,3.93657816]
[1733553752584,0.1752,3989.2,3989.1,5.90961084]
[1733553753284,0.90359022,3989.3,3989.0,5.90961084]
[1733553753487,0.17521,3989.1,3989.0,5.90961084]
[1733553753688,0.17521,3989.1,3988.9,0.819]
[1733553753689,0.17521,3989.0,3988.9,0.819]
[1733553753987,1.07880022,3989.0,3988.9,0.4087]
[1733553754383,1.07880022,3989.0,3988.9,4.343644]
[1733553756288,1.07880022,3989.0,3988.9,0.4087]
[1733553759988,0.90359022,3989.0,3988.4,7.142744]
[1733553760188,0.17523,3988.6,3988.5,0.3957]
[1733553760381,0.17523,3988.6,3988.4,7.142744]
[1733553760382,0.17523,3988.5,3988.4,3.2078]
[1733553760690,1.47152022,3988.5,3988.4,3.2078]
[1733553762381,1.47152022,3988.5,3988.1,0.3957]
[1733553762587,1.07884022,3988.2,3988.1,0.3957]
[1733553763695,0.17527,3987.8,3987.6,3.8718]
[1733553763994,1.07886022,3987.8,3987.7,0.7884]
[1733553765690,0.17527,3987.7,3987.6,3.2078]
[1733553766391,1.80718044,3987.8,3987.2,3.6025]
[1733553766598,1.07888022,3987.3,3987.2,3.6025]
[1733553767394,0.17529,3987.3,3987.2,3.6025]
[1733553767589,1.07888022,3987.3,3987.2,3.6025]
[1733553768588,0.3929,3988.0,3987.2,3.6025]
[1733553768787,0.90359022,3987.7,3987.4,0.17528]
[1733553768994,0.90359022,3987.7,3987.4,0.66]
[1733553769291,0.17528,3987.5,3987.4,0.66]
[1733553769495,0.17529,3987.3,3987.2,3.6025]
[1733553769793,1.07888022,3987.3,3987.2,3.6025]
[1733553771291,1.08042209,3987.3,3987.2,3.6025]
[1733553771696,1.08042174,3987.3,3987.2,3.6025]
[1733553771994,1.08042174,3987.3,3987.2,0.3947]
[1733553772294,1.08042174,3987.3,3987.2,3.6025]
[1733553773789,0.17529,3987.3,3987.2,3.6025]
[1733553773989,1.08042174,3987.3,3987.2,3.6025]
[1733553777295,3.2078,3988.5,3987.2,8.6025]
[1733553777495,3.2078,3988.5,3987.8,3.38307]
[1733553777496,0.90513174,3987.9,3987.8,3.38307]
[1733553777697,0.90513174,3987.9,3987.8,3.8678]
[1733553777698,1.08039174,3987.9,3987.8,3.8678]
[1733553781804,0.90513174,3987.9,3987.8,3.8678]
[1733553782008,0.90513174,3987.9,3987.8,4.04308]
[1733553782502,1.08040174,3987.9,3987.8,3.8678]
[1733553782897,0.17525,3988.4,3988.3,0.17525]
[1733553783097,4.11293174,3988.9,3988.1,0.90513174]
[1733553783401,1.08037174,3988.6,3987.9,0.17527]
[1733553783603,1.08037174,3988.6,3987.8,4.77293174]
[1733553783903,1.08037174,3988.6,3988.5,0.17525]
[1733553784098,1.08037174,3988.6,3988.5,0.66]
[1733553785010,1.08037174,3988.6,3988.5,0.83525]
[1733553785404,0.90513174,3988.6,3988.5,0.83525]
[1733553786598,3.2078,3989.7,3988.5,1.56513174]
[1733553786805,0.1752,3989.5,3989.4,0.17521]
[1733553787005,0.5572,3989.6,3989.4,0.17521]
[1733553787408,0.86411354,3990.9,3989.3,0.3787]
[1733553787613,0.1752,3989.7,3989.6,3.2078]
[1733553788309,0.90513174,3989.8,3989.6,3.2078]
[1733553788513,1.08032174,3989.8,3989.7,0.17519]
[1733553788806,1.08032174,3989.8,3989.6,3.38299]
[1733553790706,1.08032174,3989.8,3989.7,0.17519]
[1733553790912,0.90513174,3989.8,3989.7,0.17519]
[1733553791106,0.17519,3989.7,3989.6,3.2078]
[1733553791311,0.17521,3989.4,3989.2,3.38301]
[1733553791508,0.9736,3989.6,3989.5,0.66]
[1733553792412,0.7984,3989.6,3989.5,0.66]
[1733553792601,0.7984,3989.6,3989.3,0.17521]
[1733553792807,0.7984,3989.6,3989.3,0.83521]
[1733553793002,0.9736,3989.6,3989.3,0.83521]
[1733553793208,0.7984,3989.6,3989.3,0.66]
[1733553793412,0.1752,3989.5,3989.3,0.66]
[1733553793712,0.1752,3989.5,3989.3,0.83521]
[1733553793915,0.7984,3989.6,3989.3,0.83521]
[1733553794413,0.9736,3989.6,3989.3,0.83521]
[1733553797010,0.7984,3989.6,3989.3,0.66]
[1733553797207,0.17521,3989.4,3989.3,0.66]
[1733553797611,0.9736,3989.6,3989.3,0.66]
[1733553799019,0.1752,3989.5,3989.3,0.66]
[1733553799411,0.7984,3989.6,3989.3,0.66]
[1733553799612,0.1752,3989.5,3989.2,3.2078]
[1733553800516,0.17521,3989.4,3989.2,3.2078]
[1733553800917,0.7984,3989.6,3989.2,3.2078]
[1733553801117,0.17521,3989.3,3989.2,3.2078]
[1733553802716,0.7984,3989.6,3989.4,0.17521]
[1733553803020,0.9736,3989.6,3989.2,3.38301]
[1733553804416,0.1752,3989.5,3989.2,3.38301]
[1733553804618,0.4,3989.6,3989.4,0.1752]
[1733553804914,0.4,3989.6,3989.2,3.2078]
[1733553805111,0.3962,3989.7,3989.2,3.2078]
[1733553805317,0.3962,3989.7,3989.5,0.1752]
[1733553806316,0.3962,3989.7,3989.6,0.1752]
[1733553806617,0.3962,3989.7,3989.2,3.2078]
[1733553806618,0.57139,3989.7,3989.5,0.1752]
[1733553806821,0.3962,3989.7,3989.5,0.1752]
[1733553807014,0.3962,3989.7,3989.6,0.66]
[1733553808314,0.17518,3990.0,3989.6,0.66]
[1733553808512,0.17518,3989.9,3989.8,3.2078]
[1733553808714,1.95877833,3990.4,3989.8,3.2078]
[1733553808913,0.55637,3990.3,3989.8,3.2078]
[1733553809319,0.55637,3990.3,3990.1,0.17517]
[1733553810914,0.3812,3990.3,3989.8,3.2078]
[1733553811515,0.55637,3990.3,3990.1,0.17517]
[1733553815720,0.55637,3990.3,3989.8,4.11145843]
[1733553815916,0.55637,3990.3,3990.0,0.17518]
[1733553816718,0.55637,3990.3,3990.1,0.17517]
[1733553817729,0.3812,3990.3,3990.1,0.17517]
[1733553818224,0.55637,3990.3,3990.1,0.17517]
[1733553818527,0.3812,3990.3,3990.1,0.17517]
[1733553818724,0.17517,3990.2,3990.1,0.17517]
[1733553819417,0.55637,3990.3,3990.1,0.17517]
[1733553819620,0.3812,3990.3,3989.9,3.2078]
[1733553820114,0.17518,3990.0,3989.9,3.2078]
[1733553820526,0.55948,3990.0,3989.9,3.2078]
[1733553820721,0.95248,3990.0,3989.9,3.2078]
[1733553822123,0.17519,3989.8,3989.7,0.66]
[1733553823723,0.1752,3989.5,3989.4,3.2078]
[1733553825935,0.2022226,3990.6,3989.4,3.2078]
[1733553826242,0.1752,3989.5,3989.4,3.2078]
[1733553827639,0.1752,3989.5,3989.4,7.13756663]
[1733553828046,0.1752,3989.5,3989.4,3.2078]
[1733553828340,0.1752,3989.5,3989.4,7.13756663]
[1733553829734,0.1752,3989.5,3989.4,3.2078]
[1733553829936,0.4117,3989.6,3989.4,3.2078]
[1733553830129,0.1752,3989.5,3989.4,3.2078]
[1733553831333,0.4117,3989.6,3989.4,9.1115275]
[1733553831730,0.1752,3989.5,3989.4,9.1115275]
[1733553831936,0.5869,3989.6,3989.4,9.1115275]
[1733553832534,0.1752,3989.5,3989.4,9.1115275]
[1733553834341,0.4117,3989.6,3989.3,5.9037275]
[1733553834546,0.4117,3989.6,3989.5,3.9355586]
[1733553834547,0.5869,3989.6,3989.5,3.9355586]
[1733553834741,0.1752,3989.5,3989.4,3.9355586]
[1733553835341,0.17521,3989.3,3989.2,5.9037275]
[1733553835547,0.4117,3989.6,3989.1,0.66]
[1733553835850,0.17521,3989.2,3989.1,0.66]
[1733553836743,0.4117,3989.6,3989.0,0.90365843]
[1733553836951,0.4116,3989.1,3989.0,0.66]
[1733553837143,0.58682,3989.1,3989.0,0.66]
[1733553839546,0.4116,3989.1,3989.0,5.90203105]
[1733553839846,1.49047843,3989.1,3989.0,5.90203105]
[1733553840045,1.49047843,3989.1,3989.0,5.27923105]
[1733553841252,1.49047843,3989.1,3988.6,3.93511456]
[1733553841253,0.17524,3988.7,3988.6,3.93511456]
[1733553841443,0.17525,3988.5,3988.4,3.2078]
[1733553841743,0.90365843,3988.5,3987.9,3.2078]
[1733553841942,0.17526,3988.2,3988.1,3.93353108]
[1733553842341,0.789,3988.4,3988.0,3.93353108]
[1733553842342,0.17526,3988.1,3988.0,3.93353108]
[1733553842541,0.789,3988.4,3987.9,7.80133108]
[1733553842749,0.17527,3988.0,3987.9,3.8678]
[1733553842950,0.17527,3988.0,3987.9,7.79980689]
[1733553843449,0.17527,3988.0,3987.9,3.8678]
[1733553844148,0.4003,3988.3,3987.8,0.2178]
[1733553844348,0.17527,3987.9,3987.8,0.2178]
[1733553845553,0.4003,3988.3,3987.8,0.2178]
[1733553845753,0.17527,3988.1,3987.8,0.2178]
[1733553846053,0.17527,3988.0,3987.8,0.2178]
[1733553846245,0.4003,3988.3,3987.8,0.2178]
[1733553846447,0.17527,3987.9,3987.8,0.2178]
[1733553846647,0.4003,3988.3,3987.8,0.2178]
[1733553846846,0.17526,3988.2,3988.0,0.90365843]
[1733553847050,0.17526,3988.2,3988.1,0.4034]
[1733553847250,0.4038,3988.4,3988.1,0.4034]
[1733553847461,0.17526,3988.2,3988.1,0.4034]
[1733553849948,0.408,3988.9,3988.1,0.4034]
[1733553850155,0.17525,3988.5,3988.4,3.2078]
[1733553850751,0.17525,3988.5,3988.4,3.6101]
[1733553851754,0.17524,3988.6,3988.4,3.78535]
[1733553852460,0.4118,3988.7,3988.4,3.6101]
[1733553852757,0.17524,3988.6,3988.4,3.78535]
[1733553853248,0.58704,3988.7,3988.5,0.17524]
[1733553853445,0.17524,3988.7,3988.5,0.17524]
[1733553853849,0.57694,3988.8,3988.5,0.17524]
[1733553854054,0.17524,3988.7,3988.6,0.17524]
[1733553855054,0.17523,3988.8,3988.6,0.17524]
[1733553855447,0.4131,3989.1,3988.5,3.2078]
[1733553855654,0.17523,3988.9,3988.7,0.17524]
[1733553856153,0.17523,3988.9,3988.5,3.2078]
[1733553856154,0.17523,3988.9,3988.8,0.17523]
[1733553856958,0.4131,3989.1,3988.5,3.2078]
[1733553857156,0.4131,3989.1,3988.6,0.90365843]
[1733553857351,0.17521,3989.4,3989.3,0.17521]
[1733553858157,0.17521,3989.3,3989.1,0.98842]
[1733553858361,0.17521,3989.2,3989.1,0.98842]
[1733553858556,0.17521,3989.3,3989.2,0.17521]
[1733553859460,0.7866,3989.5,3989.1,0.98842]
[1733553859760,0.17521,3989.3,3989.1,0.98842]
[1733553860064,0.7866,3989.5,3989.1,0.98842]
[1733553860359,0.17521,3989.3,3989.1,0.98842]
[1733553860963,0.17521,3989.3,3989.1,0.17522]
[1733553861156,0.17522,3989.1,3989.0,3.2078]
[1733553867462,0.17524,3988.8,3988.6,3.92391382]
[1733553867663,0.17524,3988.8,3988.7,3.2078]
[1733553868260,0.97213,3988.9,3988.7,3.2078]
[1733553868859,0.17523,3988.8,3988.7,3.2078]
[1733553870363,0.7969,3988.9,3988.2,3.92391382]
[1733553870364,0.17525,3988.4,3988.2,3.92391382]
[1733553870660,0.97215,3988.3,3988.2,3.92391382]
[1733553870969,0.97215,3988.3,3988.2,3.9317939]
[1733553871160,0.97215,3988.3,3988.1,3.9317939]
[1733553871161,0.17526,3988.2,3988.1,3.9317939]
[1733553871367,0.55536,3988.2,3988.1,3.9319007]
[1733553872066,0.55536,3988.2,3988.0,0.66]
[1733553872067,0.17526,3988.1,3988.0,0.66]
[1733553872270,0.17526,3988.1,3988.0,4.5919007]
[1733553874061,0.17526,3988.1,3988.0,0.66]
[1733553874464,0.3801,3988.2,3987.9,3.9319007]
[1733553874663,0.17527,3988.0,3987.9,3.9319007]
[1733553875361,0.17526,3988.1,3987.9,3.9319007]
[1733553875561,0.17527,3988.0,3987.9,3.9319007]
[1733553875959,0.17527,3987.9,3987.8,3.9319007]
[1733553876170,0.17527,3987.9,3987.6,3.8678]
[1733553876171,0.17528,3987.8,3987.7,3.9319007]
[1733553876370,0.90365843,3988.0,3987.7,3.93204111]
[1733553876667,0.17528,3987.8,3987.7,3.93204111]
[1733553876866,0.17528,3987.7,3987.6,3.2078]
[1733553877064,1.07893843,3987.7,3987.6,3.2078]
[1733553877269,0.90365843,3987.7,3987.3,4.72644111]
[1733553877573,0.17529,3987.4,3987.3,4.72644111]
[1733553877974,0.17529,3987.4,3987.3,3.93204111]
[1733553878367,0.1753,3987.3,3987.2,7.79984111]
[1733553879265,0.90365843,3987.8,3987.2,7.13984111]
[1733553879467,0.17529,3987.4,3987.3,0.7673]
[1733553884177,0.8021,3987.6,3987.0,5.49569954]
[1733553884474,0.17531,3987.1,3987.0,5.49569954]
[1733553885177,0.17531,3987.1,3987.0,1.56365843]
[1733553885380,0.17531,3987.1,3987.0,5.49569954]
[1733553885580,0.17531,3987.1,3987.0,1.56365843]
[1733553885773,0.17531,3987.1,3987.0,0.66]
[1733553885982,0.17531,3987.0,3986.9,0.7612]
[1733553888582,0.17532,3986.9,3986.8,3.2078]
[1733553888781,0.98542,3986.9,3986.8,3.2078]
[1733553889474,1.88907843,3986.9,3986.8,3.2078]
[1733553893382,1.88907843,3986.9,3986.3,4.59604111]
[1733553893383,0.17534,3986.4,3986.3,0.4029]
[1733553895190,0.17534,3986.4,3986.3,3.6107]
[1733553896084,2.15205843,3986.9,3986.3,3.6107]
[1733553896287,0.17532,3986.8,3986.3,3.6107]
[1733553896595,0.17534,3986.4,3986.3,3.6107]
[1733553897587,0.17534,3986.4,3986.3,4.2747]
[1733553904192,0.17534,3986.4,3985.8,3.93204111]
[1733553904193,0.17536,3985.9,3985.8,3.2078]
[1733553904494,1.07901843,3985.9,3985.8,3.2078]
[1733553905085,1.07901843,3985.9,3985.6,0.7677]
[1733553905086,0.90365843,3985.9,3985.6,0.7677]
[1733553905289,0.17537,3985.7,3985.6,0.7677]
[1733553906291,0.3911,3985.8,3985.6,0.7677]
[1733553906492,0.17537,3985.7,3985.6,0.7677]
[1733553910296,0.3911,3985.8,3985.4,0.4097]
[1733553910500,0.17538,3985.5,3985.4,1.0737]
[1733553913195,0.17537,3985.6,3985.4,1.97735843]
[1733553913402,0.17538,3985.5,3985.4,1.97735843]
[1733553913604,0.17538,3985.5,3985.4,2.38785843]
[1733553914204,0.17538,3985.5,3985.4,1.4842]
[1733553914798,0.7892,3985.7,3985.4,0.664]
[1733553915106,0.7892,3985.7,3985.2,3.5985]
[1733553915315,0.17539,3985.3,3985.2,3.8718]
[1733553916795,1.07904843,3985.3,3985.2,3.2078]
[1733553919298,0.17539,3985.3,3985.2,3.2078]
[1733553919498,1.07904843,3985.3,3985.2,3.2078]
[1733553926518,1.06731218,3985.3,3985.2,3.2078]
[1733553932710,0.17541,3984.8,3984.6,3.2078]
[1733553933516,1.07906843,3984.9,3984.6,3.2078]
[1733553934307,1.07906843,3984.9,3984.6,3.38322]
[1733553934515,0.90365843,3984.9,3984.6,3.2078]
[1733553934715,0.90365843,3984.9,3984.6,3.38322]
[1733553935120,0.17541,3984.8,3984.6,3.38322]
[1733553935717,0.17541,3984.7,3984.6,3.38322]
[1733553936116,0.17541,3984.7,3984.6,3.2078]
[1733553940219,0.17541,3984.7,3984.6,3.38322]
[1733553940521,0.17541,3984.7,3984.6,0.17542]
[1733553940727,0.17541,3984.7,3984.6,7.31526111]
[1733553940927,0.17541,3984.7,3984.6,7.13984111]
[1733553942131,0.17541,3984.7,3984.6,7.31526111]
[1733553942333,0.17541,3984.7,3984.6,3.38322]
[1733553942728,0.17541,3984.7,3984.6,3.2078]
[1733553943931,0.17542,3984.6,3984.5,6.43002069]
[1733553944122,0.17542,3984.6,3984.5,9.63782069]
[1733553945029,0.17542,3984.6,3984.5,9.46240069]
[1733553945234,0.17542,3984.6,3984.5,9.63782069]